Workbook

Sheet Eignungskriterien
A2: Eignungskriterien
A4: Projekt: 10.05.07-23.13, Programm BULE+ Region gestalten
A6: Nr. | B6: Kriterien | C6: Erläuterungen zu den erforderlichen Angaben | D6: Gewichtung | E6: Maßstab für die Beurteilung der Eignung
A7: 1 | B7: Fachkenntnis, fachliche Eignung (Fachkunde) | C7: Profil des Bieters und dessen Nachunternehmen als Eigenerklärung, insbesondere zur Art, Umfang und Dauer der Geschäftstätigkeit im ausgeschriebenen Leistungsbereich (europäische Raumentwicklungspolitik, ländliche Regionalentwicklung, Kreislaufwirtschaft) einschl. Angabe von drei bis acht Referenzprojekten der letzten 10 Jahre. Die Referenzprojekte müssen das erfolgreiche Umsetzen eines zum ausgeschriebenen Leistungsbereichs vergleichbaren Vorhabens erkennen lassen. Die Angaben zu den Referenzprojekten müssen mind. die folgenden Punkte umfassen: • Ausführliche Beschreibung der erbrachten Leistungen • Nettoauftragsvolumen • Leistungszeitraum • Auftraggeber | D7: 60 | E7: Die nachgewiesenen Fachkenntnisse erfüllen die Anforderungen insgesamt 4 Punkte = sehr gut 3 Punkte = gut 2 Punkte = zufriedenstellend 1 Punkt = ausreichend 0 Punkte = mangelhaft
A8: 2 | B8: Personal (Qualifikation/Umfang) | C8: • Benennung der verantwortlichen Projektleitung, deren Qualifikation und Erfahrung in Bezug auf den Leistungsbereich und deren Zeitanteile bei der Umsetzung des Vorhabens • Benennung der weiteren Mitarbeitenden, deren Qualifikation und Erfahrung in Bezug auf den Leistungsbereich und deren Zeitanteile bei der Umsetzung des Vorhabens • Angabe, bei welchen der Referenzprojekte (Kriterium 1) das benannte Personal in welcher Funktion beteiligt war | D8: 40 | E8: Die nachgewiesenen Fachkenntnisse erfüllen die Anforderungen insgesamt 4 Punkte = sehr gut 3 Punkte = gut 2 Punkte = zufriedenstellend 1 Punkt = ausreichend 0 Punkte = mangelhaft
D9: =SUM(D7:D8) -> 100
A11: Wertungshinweis: Die Bewertung erfolgt anhand von 0 bis 4 Bewertungspunkten (siehe Spalte "Maßstab"). Es wird ein Produkt aus den jeweiligen Bewertungspunkten und den Gewichtungspunkten pro Kriterium gebildet. Die so ermittelten Ergebnisse je Kriterium werden summiert. Als Gesamtpunktzahl können maximal 400 Punkte erreicht werden. Ein Angebot wird von der Wertung ausgeschlossen, wenn bei einem Kriterium nicht mindestens 1 Punkt erzielt wird und insgesamt nicht mindestens eine Gesamtpunktzahl von 100 erzielt wird.

Sheet Zuschlagskriterien
A2: Zuschlagskriterien
A4: Projekt: 10.05.07-23.13, Programm BULE+ Region gestalten
A6: Nr. | B6: Kriterien | C6: Erläuterungen zu den erforderlichen Angaben | D6: Gewichtung | E6: Bewertungsmaßstab
A7: 1 | B7: Problem- und Aufgabenverständnis | C7: Interpretation der Zielstellung des Projektes mittels eigener Formulierungen, Darstellung eines tiefgehendes Verständnis des Themenbereiches und der Rahmenbedingungen (europäische Raumentwicklungspolitik, ländliche Regionalentwicklung, Kreislaufwirtschaft); eigene Ergänzungen/Ausdifferenzierungen der Forschungsfragen, Nachvollziehbarkeit | D7: 20 | E7: 4 Punkte = sehr gut 3 Punkte = gut 2 Punkte = zufriedenstellend 1 Punkt = ausreichend 0 Punkte = mangelhaft
A8: 2 | B8: Methodisches Vorgehen | C8: In Bezug auf Leistungsbausteine A bis E: Abdeckung des Leistungsumfangs, eigene Vorschläge und Ergänzungen, konzeptionelle Ansätze, Strukturierung, Schwerpunktsetzungen, Ansätze zur Vernetzung und Einbindung relevanter Akteure, zielgruppengerechte Aufbereitung und Kommunikation, Nachvollziehbarkeit | D8: 35 | E8: 4 Punkte = sehr gut 3 Punkte = gut 2 Punkte = zufriedenstellend 1 Punkt = ausreichend 0 Punkte = mangelhaft
A9: 3 | B9: Arbeits- und Zeitplan, Personaleinsatz | C9: Praktikabilität des Maßnahmen- und Zeitplans, Strukturierung des Projektablaufs, Qualität und Quantität des Personaleinsatzes, Eindeutigkeit der Aufgabenverteilung, Koordination | D9: 25 | E9: 4 Punkte = sehr gut 3 Punkte = gut 2 Punkte = zufriedenstellend 1 Punkt = ausreichend 0 Punkte = mangelhaft
A10: 5 | B10: Preis | C10: Wirtschaftlichkeit auf Basis des Nettopreises | D10: 20 | E10: Interpolation: Für die Angebotswertung wird der Preis (ohne Ust. in €) wie folgt in eine Punkteskala von 0 bis 4 Punkten normiert:4 Punkte erhält das Angebot mit dem niedrigsten (auskömmlichen) Preis.0 Punkte erhält ein fiktives Angebot mit dem 1,5-fachen Satz des niedrigsten Preises. Alle Angebote mit darüber liegenden Preisen erhalten ebenfalls 0 Punkte. Die Punktermittlung für die dazwischen liegenden Preise erfolgt über eine lineare Interpolation mit bis zu zwei Stellen nach dem Komma**, sofern die Höchstsumme nicht überschritten wurde, anderenfalls wird das Angebot von der Vergabe ausgeschlossen.
D11: =SUM(D7:D10) -> 100
A13: Wertungshinweis: Die Bewertung erfolgt anhand von 0 bis 4 Bewertungspunkten (siehe Spalte "Maßstab"). Es wird ein Produkt aus den jeweiligen Bewertungspunkten und den Gewichtungspunkten pro Kriterium gebildet. Die so ermittelten Ergebnisse je Kriterium werden summiert. Als Gesamtpunktzahl können maximal 400 Punkte erreicht werden. Ein Angebot wird von der Wertung ausgeschlossen, wenn bei einem Kriterium nicht mindestens 1 Punkt erzielt wird und insgesamt nicht mindestens eine Gesamtpunktzahl von 100 erzielt wird.

Sheet Interpolation
A1: Bewertung Angebotspreise
A2: y1 (Höchstpunktzahl) | B2: 4
A3: y2 (1,5x Null-Punkte-Regel) | B3: 0
A4: x1 (Angebot mit dem niedrigsten (auskömmlichen) Preis) | B4: 28000
A5: Interpolationssatz | B5: 1.5
A6: Preisobergrenze | B6: 42016.81
A8: Angebot Bieter | B8: Preis netto inkl. aller optionalen Leistungen | C8: Punkte
A9: Angebot 1 | B9: 28000 | C9: =(B9*Interpolationsformel!$B$7)+Interpolationsformel!$B$8 -> 4
A10: Angebot 2 | B10: 32000 | C10: =(B10*Interpolationsformel!$B$7)+Interpolationsformel!$B$8 -> 2.857142857
A11: Angebot 3 | B11: 38000 | C11: =(B11*Interpolationsformel!$B$7)+Interpolationsformel!$B$8 -> 1.142857143 | G11: =50000/1.19 -> 42016.80672

Sheet Auswertung
A2: Auswertung
A4: Projekt: 10.08.xx-xx, Programm xx, Programmtitel xx
A6: Nr. | B6: Kriterien | C6: Erläuterungen zu den erforderlichen Angaben | D6: Gewichtung | E6: Bewertungsmaßstab | F6: Angebot 1 | G6: Summe | H6: Angebot 2 | I6: Summe | J6: Angebot 3 | K6: Summe
B7: Eignung
A8: 1 | B8: Fachkenntnis, fachliche Eignung (Fachkunde) | C8: Profil des Bieters und dessen Nachunternehmen als Eigenerklärung, insbesondere zur Art, Umfang und Dauer der Geschäftstätigkeit im ausgeschriebenen Leistungsbereich einschl. Angabe von mind. drei Referenzprojekten. Die Referenzprojekte müssen das erfolgreiche Erstellen und Umsetzen eines zum ausgeschriebenen Leistungsbereichs vergleichbaren Evaluationsprojektes erkennen lassen. Die Angaben zu den Referenzprojekten müssen mind. die folgenden Punkte umfassen: • Ausführliche Beschreibung der erbrachten Leistungen • Nettoauftragsvolumen • Leistungszeitraum • Auftraggeber mit Kontaktdaten | D8: 60 | E8: 4 Punkte = sehr gut 3 Punkte = gut 2 Punkte = zufriedenstellend 1 Punkt = ausreichend 0 Punkte = mangelhaft | F8: 4 | G8: =F8*D8 -> 240 | H8: 3 | I8: =H8*D8 -> 180 | J8: 2 | K8: =J8*D8 -> 120
A9: 2 | B9: Personal (Qualifitkation/Umfang) | C9: • Benennung der verantwortlichen Projektleitung • Benennung der wissenschaftlichen Mitarbeiter • Referenzprojekte des benannten Personals | D9: 40 | E9: 4 Punkte = sehr gut 3 Punkte = gut 2 Punkte = zufriedenstellend 1 Punkt = ausreichend 0 Punkte = mangelhaft | F9: 3 | G9: =F9*D9 -> 120 | H9: 4 | I9: =H9*D9 -> 160 | J9: 3 | K9: =J9*D9 -> 120
D10: =SUM(D8:D9) -> 100 | E10: 1. Stufe Eignung | G10: =SUM(G8:G9) -> 360 | I10: =SUM(I8:I9) -> 340 | K10: =SUM(K8:K9) -> 240
B12: Zuschlag
A13: 1 | B13: Problem- und Aufgabenverständnis | C13: Interpretation der Zielstellung des Projektes, Umsetzung der Aufgabenstellung, Berücksichtigung der Rahmenbedingungen und rechtlichen Vorgaben; Strukturierung der Themen, Nachvollziehbarkeit, Qualitätssicherung; Konzeptionierung der Leistungsbausteine des Forschungsvorhabens | D13: 25 | E13: 4 Punkte = sehr gut 3 Punkte = gut 2 Punkte = zufriedenstellend 1 Punkt = ausreichend 0 Punkte = mangelhaft | F13: 3 | G13: =$D$13*F13 -> 75 | H13: 4 | I13: =$D$13*H13 -> 100 | J13: 2 | K13: =$D$13*J13 -> 50
A14: 2 | B14: Methodisches Vorgehen | C14: konzeptionelle Ansätze, Strukturierung, Nachvollziehbarkeit, Qualitätssicherung, Vernetzung und Einbindung Dritter | D14: 30 | E14: 4 Punkte = sehr gut 3 Punkte = gut 2 Punkte = zufriedenstellend 1 Punkt = ausreichend 0 Punkte = mangelhaft | F14: 4 | G14: =$D$14*F14 -> 120 | H14: 3 | I14: =$D$14*H14 -> 90 | J14: 4 | K14: =$D$14*J14 -> 120
A15: 3 | B15: Arbeits- und Zeitplan | C15: Praktikabilität des Maßnahmen- und Zeitplans, Strukturierung des Projektablaufs, Personaleinsatz, Aufgabenverteilung, Koordination | D15: 25 | E15: 4 Punkte = sehr gut 3 Punkte = gut 2 Punkte = zufriedenstellend 1 Punkt = ausreichend 0 Punkte = mangelhaft | F15: 3 | G15: =$D$15*F15 -> 75 | H15: 3 | I15: =$D$15*H15 -> 75 | J15: 3 | K15: =$D$15*J15 -> 75
A16: 5 | B16: Preis | C16: Wirtschaftlichkeit auf Basis des Nettopreises | D16: 20 | E16: Interpolation: Für die Angebotswertung wird der Preis (ohne Ust. in €) wie folgt in eine Punkteskala von 0 bis 4 Punkten normiert:4 Punkte erhält das Angebot mit dem niedrigsten (auskömmlichen) Preis.0 Punkte erhält ein fiktives Angebot mit dem 1,5-fachen Satz des niedrigsten Preises. Alle Angebote mit darüber liegenden Preisen erhalten ebenfalls 0 Punkte. Die Punktermittlung für die dazwischen liegenden Preise erfolgt über eine lineare Interpolation mit bis zu zwei Stellen nach dem Komma**, sofern die Höchstsumme nicht überschritten wurde, anderenfalls wird das Angebot von der Vergabe ausgeschlossen. | F16: =Interpolation!C9 -> 4 | G16: =$D$16*F16 -> 80 | H16: =Interpolation!C10 -> 2.857142857 | I16: =$D$16*H16 -> 57.14285714 | J16: =Interpolation!C11 -> 1.142857143 | K16: =$D$16*J16 -> 22.85714286
D17: =SUM(D13:D16) -> 100 | E17: 2. Stufe | G17: =SUM(G13:G16) -> 350 | I17: =SUM(I13:I16) -> 322.1428571 | K17: =SUM(K13:K16) -> 267.8571429
A19: Wertungshinweis: Die Bewertung erfolgt anhand von 0 bis 4 Bewertungspunkten (siehe Spalte "Maßstab"). Es wird ein Produkt aus den jeweiligen Bewertungspunkten und den Gewichtungspunkten pro Kriterium gebildet. Die so ermittelten Ergebnisse je Kriterium werden summiert. Als Gesamtpunktzahl können maximal 400 Punkte erreicht werden. Ein Angebot wird von der Wertung ausgeschlossen, wenn bei einem Kriterium nicht mindestens 1 Punkt erzielt wird und insgesamt nicht mindestens eine Gesamtpunktzahl von 100 erzielt wird.

Sheet Interpolationsformel
C5: 1.5 | D5: 2
A6: x2 (Fiktives Angbot mit Interpolationssatz) | B6: =Interpolation!B4*Interpolation!B5 -> 42000
A7: m Steigung | B7: =((Interpolation!B3-Interpolation!B2)/(B6-Interpolation!B4)) -> -0.0002857142857
A8: y-Achsenabschnitt n | B8: =Interpolation!B2-(Interpolation!B4*B7) -> 12
A9: Funktion f(x)=mx+n
